[Event "*** Titled Tuesday Blitz"]
[Site "Chess.com"]
[Date "2018.09.04"]
[Round "1"]
[White "Haykos"]
[Black "Saitama_Hero"]
[Result "1-0"]
[WhiteElo "2532"]
[BlackElo "2185"]
[TimeControl "180+2"]
[EndTime "13:41:42 PDT"]
[Termination "Haykos won by resignation"]

1. e4 {[%clk 0:03:00.1]} 1... c5 {[%clk 0:02:58.2]} 2. Nf3 {[%clk 0:03:01.3]}
2... d6 {[%clk 0:02:59.2]} 3. Bb5+ {[%clk 0:03:02.9]} 3... Bd7 {[%clk
0:02:58.6]} 4. Bxd7+ {[%clk 0:03:03.8]} 4... Qxd7 {[%clk 0:03:00.5]} 5. O-O
{[%clk 0:03:05.5]} 5... Nf6 {[%clk 0:02:59]} 6. e5 {[%clk 0:03:06.5]} 6... dxe5
{[%clk 0:02:56.5]} 7. Nxe5 {[%clk 0:03:08.4]} 7... Qc7 {[%clk 0:02:53.8]} 8. d4
{[%clk 0:03:09.8]} 8... cxd4 {[%clk 0:02:31]} 9. Bf4 {[%clk 0:03:09.8]} 9... Qb6
{[%clk 0:02:04.6]} 10. Nd2 {[%clk 0:03:09.7]} 10... Nc6 {[%clk 0:02:05.2]} 11.
Ndc4 {[%clk 0:03:10.5]} 11... Qa6 {[%clk 0:02:06]} 12. Nxc6 {[%clk 0:02:56.1]}
12... Qxc4 {[%clk 0:01:56.7]} 13. Nxd4 {[%clk 0:02:53.2]} 13... e6 {[%clk
0:01:56.8]} 14. b3 {[%clk 0:02:45]} 14... Qc8 {[%clk 0:01:39.1]} 15. Nb5 {[%clk
0:02:35.1]} 15... Nd5 {[%clk 0:01:38.8]} 16. Nd6+ {[%clk 0:02:35.9]} 16... Bxd6
{[%clk 0:01:37.8]} 17. Bxd6 {[%clk 0:02:37]} 17... Qc6 {[%clk 0:01:38.8]} 18.
Ba3 {[%clk 0:02:26.8]} 18... O-O-O {[%clk 0:01:33.2]} 19. Qf3 {[%clk 0:02:11.1]}
19... Rd7 {[%clk 0:01:25.9]} 20. Rfd1 {[%clk 0:01:55.6]} 20... Rhd8 {[%clk
0:01:25.6]} 21. c4 {[%clk 0:01:06]} 21... Nf6 {[%clk 0:01:20.8]} 22. Qxc6+
{[%clk 0:00:58.3]} 22... bxc6 {[%clk 0:01:22.7]} 23. Rxd7 {[%clk 0:00:52.4]}
23... Rxd7 {[%clk 0:01:24.6]} 24. Bc5 {[%clk 0:00:53.6]} 24... Ne4 {[%clk
0:01:10.5]} 25. Be3 {[%clk 0:00:53.2]} 25... f6 {[%clk 0:01:03.5]} 26. Kf1
{[%clk 0:00:50.8]} 26... Kb7 {[%clk 0:01:01.1]} 27. f3 {[%clk 0:00:47.2]} 27...
Nd6 {[%clk 0:00:55]} 28. Rd1 {[%clk 0:00:46.9]} 28... e5 {[%clk 0:00:56.2]} 29.
c5 {[%clk 0:00:45.3]} 1-0

[Event "*** Titled Tuesday Blitz"]
[Site "Chess.com"]
[Date "2018.09.04"]
[Round "1"]
[White "W_Amadeus"]
[Black "inegrepus"]
[Result "1-0"]
[WhiteElo "2564"]
[BlackElo "2217"]
[TimeControl "180+2"]
[EndTime "13:41:47 PDT"]
[Termination "W_Amadeus won by resignation"]

1. d4 {[%clk 0:03:00.3]} 1... Nf6 {[%clk 0:03:00]} 2. c4 {[%clk 0:03:01]} 2...
e6 {[%clk 0:03:00.6]} 3. g3 {[%clk 0:03:02.1]} 3... Bb4+ {[%clk 0:03:01.1]} 4.
Bd2 {[%clk 0:03:02]} 4... Qe7 {[%clk 0:03:00.1]} 5. Nf3 {[%clk 0:03:01.7]} 5...
O-O {[%clk 0:03:00.6]} 6. Bg2 {[%clk 0:03:01.2]} 6... a5 {[%clk 0:03:00.6]} 7.
O-O {[%clk 0:02:56.6]} 7... Bxd2 {[%clk 0:03:01.3]} 8. Qxd2 {[%clk 0:02:55.7]}
8... d6 {[%clk 0:02:58.2]} 9. Nc3 {[%clk 0:02:50]} 9... e5 {[%clk 0:02:52.6]}
10. Rac1 {[%clk 0:02:45.5]} 10... Nbd7 {[%clk 0:02:42.2]} 11. Rfd1 {[%clk
0:02:22.3]} 11... Re8 {[%clk 0:02:33]} 12. e3 {[%clk 0:02:16.1]} 12... h6 {[%clk
0:02:27.1]} 13. Nb5 {[%clk 0:02:10.2]} 13... Nf8 {[%clk 0:02:25.4]} 14. c5
{[%clk 0:02:05.4]} 14... e4 {[%clk 0:02:18]} 15. cxd6 {[%clk 0:01:57.4]} 15...
cxd6 {[%clk 0:02:18.2]} 16. Ne1 {[%clk 0:01:46.2]} 16... Bg4 {[%clk 0:02:06.9]}
17. Rc7 {[%clk 0:01:46.4]} 17... Qd8 {[%clk 0:02:06.5]} 18. Rdc1 {[%clk
0:01:47.2]} 18... b6 {[%clk 0:01:55.3]} 19. R7c6 {[%clk 0:01:23.8]} 19... d5
{[%clk 0:01:51.6]} 20. Nc7 {[%clk 0:01:22.3]} 20... Ng6 {[%clk 0:01:29.9]} 21.
Nxa8 {[%clk 0:01:16.1]} 21... Qxa8 {[%clk 0:01:30.5]} 22. Rxb6 {[%clk
0:01:17.2]} 22... h5 {[%clk 0:01:26.8]} 23. Rb5 {[%clk 0:01:11.2]} 23... a4
{[%clk 0:01:27.6]} 24. Qa5 {[%clk 0:01:09.6]} 24... h4 {[%clk 0:01:14.8]} 25.
Qxa8 {[%clk 0:01:08.9]} 25... Rxa8 {[%clk 0:01:16.7]} 26. a3 {[%clk 0:01:01.9]}
26... h3 {[%clk 0:01:15.7]} 27. Bf1 {[%clk 0:01:01.9]} 27... Nh5 {[%clk
0:01:11.8]} 28. Rxd5 {[%clk 0:01:01.4]} 28... Rb8 {[%clk 0:01:09.9]} 29. Rb5
{[%clk 0:01:00.1]} 29... Re8 {[%clk 0:01:07]} 30. Nc2 {[%clk 0:00:55.4]} 30...
f5 {[%clk 0:01:07.4]} 31. Nb4 {[%clk 0:00:54.2]} 31... Bf3 {[%clk 0:01:02.7]}
32. Bxh3 {[%clk 0:00:52.5]} 1-0

[Event "*** Titled Tuesday Blitz"]
[Site "Chess.com"]
[Date "2018.09.04"]
[Round "1"]
[White "Caisachess"]
[Black "area_5"]
[Result "0-1"]
[WhiteElo "2226"]
[BlackElo "2582"]
[TimeControl "180+2"]
[EndTime "13:41:52 PDT"]
[Termination "area_5 won by resignation"]

1. e4 {[%clk 0:03:01.6]} 1... g6 {[%clk 0:02:59.7]} 2. d4 {[%clk 0:03:01.9]}
2... Bg7 {[%clk 0:03:00.7]} 3. c3 {[%clk 0:03:03.1]} 3... d6 {[%clk 0:02:56.9]}
4. Nf3 {[%clk 0:03:03.7]} 4... Nc6 {[%clk 0:02:56.1]} 5. h3 {[%clk 0:03:00.6]}
5... e5 {[%clk 0:02:57.1]} 6. Bb5 {[%clk 0:02:56.4]} 6... Bd7 {[%clk 0:02:56.1]}
7. dxe5 {[%clk 0:02:56.1]} 7... Nxe5 {[%clk 0:02:55.5]} 8. Bxd7+ {[%clk
0:02:56.1]} 8... Qxd7 {[%clk 0:02:56.3]} 9. Nxe5 {[%clk 0:02:56.6]} 9... Bxe5
{[%clk 0:02:55.9]} 10. O-O {[%clk 0:02:57.5]} 10... Bg7 {[%clk 0:02:56.6]} 11.
f4 {[%clk 0:02:58.6]} 11... Nf6 {[%clk 0:02:56]} 12. Qf3 {[%clk 0:02:59]} 12...
Qc6 {[%clk 0:02:48.7]} 13. Re1 {[%clk 0:02:54.1]} 13... O-O {[%clk 0:02:44.8]}
14. Nd2 {[%clk 0:02:36.1]} 14... Rfe8 {[%clk 0:02:38.1]} 15. e5 {[%clk
0:02:35.7]} 15... dxe5 {[%clk 0:02:34]} 16. Qxc6 {[%clk 0:02:35.2]} 16... bxc6
{[%clk 0:02:34.6]} 17. fxe5 {[%clk 0:02:35.3]} 17... Nd7 {[%clk 0:02:35.5]} 18.
Nf3 {[%clk 0:02:34.5]} 18... Nxe5 {[%clk 0:02:36]} 19. Nxe5 {[%clk 0:02:34.5]}
19... Bxe5 {[%clk 0:02:36.4]} 20. Be3 {[%clk 0:02:33.7]} 20... a6 {[%clk
0:02:36.8]} 21. Rad1 {[%clk 0:02:30.8]} 21... Bd6 {[%clk 0:02:37.7]} 22. Bd4
{[%clk 0:02:28.5]} 22... f5 {[%clk 0:02:37.2]} 23. Kf2 {[%clk 0:02:24.8]} 23...
Kf7 {[%clk 0:02:37.9]} 24. Kf3 {[%clk 0:02:25]} 24... Rxe1 {[%clk 0:02:38.1]}
25. Rxe1 {[%clk 0:02:23.3]} 25... Re8 {[%clk 0:02:38.5]} 26. Rxe8 {[%clk
0:02:23.5]} 26... Kxe8 {[%clk 0:02:39]} 27. h4 {[%clk 0:02:01.9]} 27... Kf7
{[%clk 0:02:38.7]} 28. Be3 {[%clk 0:01:58.5]} 28... Ke6 {[%clk 0:02:38]} 29. h5
{[%clk 0:01:49.3]} 29... Kd5 {[%clk 0:02:28.8]} 30. hxg6 {[%clk 0:01:44.9]}
30... hxg6 {[%clk 0:02:28.9]} 31. b3 {[%clk 0:01:35.7]} 31... Be5 {[%clk
0:02:26.7]} 32. Bd2 {[%clk 0:01:31.8]} 32... c5 {[%clk 0:02:23.7]} 33. Ke3
{[%clk 0:01:28.1]} 33... c4 {[%clk 0:02:24]} 34. b4 {[%clk 0:01:28.9]} 34... g5
{[%clk 0:02:23.7]} 35. Kf3 {[%clk 0:01:15]} 35... g4+ {[%clk 0:02:23.9]} 36. Ke2
{[%clk 0:01:11.8]} 36... c6 {[%clk 0:02:23.8]} 37. a4 {[%clk 0:01:11.7]} 37...
Ke4 {[%clk 0:02:24.6]} 38. Be1 {[%clk 0:01:05.7]} 38... f4 {[%clk 0:02:24.5]}
39. Bd2 {[%clk 0:01:06.1]} 39... Bf6 {[%clk 0:02:24.3]} 40. Be1 {[%clk
0:01:02.6]} 40... Bh8 {[%clk 0:02:24.6]} 41. Bd2 {[%clk 0:01:01.7]} 41... Bg7
{[%clk 0:02:25.4]} 42. Be1 {[%clk 0:01:02.5]} 42... Bf6 {[%clk 0:02:26.5]} 43.
Bd2 {[%clk 0:01:03.3]} 43... Bh4 {[%clk 0:02:27.4]} 44. a5 {[%clk 0:00:49.1]}
44... Bf6 {[%clk 0:02:24.2]} 45. Kf2 {[%clk 0:00:48.6]} 45... Bh4+ {[%clk
0:02:24]} 46. Ke2 {[%clk 0:00:49.6]} 46... Bg3 {[%clk 0:02:22.4]} 47. Bc1 {[%clk
0:00:44.1]} 47... f3+ {[%clk 0:02:22.4]} 48. gxf3+ {[%clk 0:00:44.9]} 48...
gxf3+ {[%clk 0:02:23.6]} 49. Kf1 {[%clk 0:00:45.4]} 49... Kd3 {[%clk 0:02:24.7]}
0-1

[Event "*** Titled Tuesday Blitz"]
[Site "Chess.com"]
[Date "2018.09.04"]
[Round "1"]
[White "Fighterman91"]
[Black "Blagorod"]
[Result "1-0"]
[WhiteElo "2475"]
[BlackElo "1997"]
[TimeControl "180+2"]
[EndTime "13:41:52 PDT"]
[Termination "Fighterman91 won by checkmate"]

1. d4 {[%clk 0:03:01]} 1... d5 {[%clk 0:03:00.6]} 2. Bf4 {[%clk 0:03:00.9]} 2...
c5 {[%clk 0:02:52.4]} 3. e3 {[%clk 0:03:00.6]} 3... e6 {[%clk 0:02:48.4]} 4. c3
{[%clk 0:02:53.4]} 4... Nf6 {[%clk 0:02:48.5]} 5. Nd2 {[%clk 0:02:53.4]} 5... c4
{[%clk 0:02:40.7]} 6. e4 {[%clk 0:02:42.5]} 6... Nc6 {[%clk 0:02:28.7]} 7. Qc2
{[%clk 0:02:31.6]} 7... Be7 {[%clk 0:02:24.3]} 8. Be2 {[%clk 0:02:32.2]} 8...
O-O {[%clk 0:02:24.2]} 9. Ngf3 {[%clk 0:02:33.2]} 9... Nh5 {[%clk 0:02:09.3]}
10. Be3 {[%clk 0:02:21.9]} 10... dxe4 {[%clk 0:01:55.6]} 11. Nxe4 {[%clk
0:02:21.6]} 11... f5 {[%clk 0:01:56.3]} 12. Ng3 {[%clk 0:02:22.5]} 12... f4
{[%clk 0:01:55.9]} 13. Nxh5 {[%clk 0:02:18.6]} 13... fxe3 {[%clk 0:01:57]} 14.
fxe3 {[%clk 0:02:18.3]} 14... e5 {[%clk 0:01:49.6]} 15. Bxc4+ {[%clk 0:02:03.8]}
15... Kh8 {[%clk 0:01:50.7]} 16. Ng3 {[%clk 0:02:05]} 16... Bg4 {[%clk
0:01:36.4]} 17. O-O-O {[%clk 0:02:00.8]} 17... exd4 {[%clk 0:01:28.6]} 18. exd4
{[%clk 0:01:59.4]} 18... Bxf3 {[%clk 0:01:18.4]} 19. gxf3 {[%clk 0:02:00.6]}
19... Rxf3 {[%clk 0:01:19.3]} 20. Rhf1 {[%clk 0:01:55.2]} 20... Qf8 {[%clk
0:01:10.7]} 21. Bd5 {[%clk 0:01:39.4]} 21... Bg5+ {[%clk 0:01:00.3]} 22. Kb1
{[%clk 0:01:39.9]} 22... Rxf1 {[%clk 0:01:00.4]} 23. Rxf1 {[%clk 0:01:41.8]}
23... Qd6 {[%clk 0:00:58.2]} 24. Qe4 {[%clk 0:01:31.9]} 24... Rd8 {[%clk
0:00:39.7]} 25. Bb3 {[%clk 0:01:27.6]} 25... Qh6 {[%clk 0:00:20.8]} 26. Qf5
{[%clk 0:01:14.4]} 26... g6 {[%clk 0:00:19.6]} 27. Qb5 {[%clk 0:01:04.9]} 27...
Qxh2 {[%clk 0:00:18.7]} 28. Qxg5 {[%clk 0:01:05.2]} 28... Re8 {[%clk 0:00:14.4]}
29. Qf6# {[%clk 0:01:06.2]} 1-0

[Event "*** Titled Tuesday Blitz"]
[Site "Chess.com"]
[Date "2018.09.04"]
[Round "1"]
[White "ulises2013"]
[Black "Nowaybacksasha"]
[Result "1/2-1/2"]
[WhiteElo "2452"]
[BlackElo "2810"]
[TimeControl "180+2"]
[EndTime "13:41:58 PDT"]
[Termination "Game drawn by repetition"]

1. e4 {[%clk 0:03:00.4]} 1... c5 {[%clk 0:03:00.3]} 2. g3 {[%clk 0:03:00.5]}
2... Nc6 {[%clk 0:03:00.4]} 3. Bg2 {[%clk 0:03:01.5]} 3... g6 {[%clk 0:03:01.9]}
4. Ne2 {[%clk 0:03:02.6]} 4... Bg7 {[%clk 0:03:03.4]} 5. O-O {[%clk 0:03:03.8]}
5... Nf6 {[%clk 0:03:02.8]} 6. c3 {[%clk 0:03:03.7]} 6... d5 {[%clk 0:03:01.4]}
7. exd5 {[%clk 0:03:01.4]} 7... Nxd5 {[%clk 0:03:03.3]} 8. d4 {[%clk 0:02:58.6]}
8... cxd4 {[%clk 0:03:04.7]} 9. cxd4 {[%clk 0:02:57.1]} 9... O-O {[%clk
0:03:04.1]} 10. Nbc3 {[%clk 0:02:57.6]} 10... Be6 {[%clk 0:02:46.3]} 11. Ne4
{[%clk 0:02:39.9]} 11... Bg4 {[%clk 0:02:38.4]} 12. f3 {[%clk 0:02:36.3]} 12...
Bc8 {[%clk 0:02:35.6]} 13. N4c3 {[%clk 0:02:31.2]} 13... Nb6 {[%clk 0:02:25.8]}
14. d5 {[%clk 0:02:09.5]} 14... Nb4 {[%clk 0:02:25.2]} 15. f4 {[%clk 0:02:07.4]}
15... Bf5 {[%clk 0:02:18.3]} 16. a3 {[%clk 0:01:37.6]} 16... Nc2 {[%clk
0:01:23.1]} 17. g4 {[%clk 0:01:35.4]} 17... Nxa1 {[%clk 0:01:23.7]} 18. gxf5
{[%clk 0:01:36.3]} 18... Nc4 {[%clk 0:01:25.4]} 19. fxg6 {[%clk 0:01:15.5]}
19... hxg6 {[%clk 0:01:25.5]} 20. f5 {[%clk 0:00:36.2]} 20... Qb6+ {[%clk
0:01:26.2]} 21. Kh1 {[%clk 0:00:37]} 21... Nb3 {[%clk 0:01:27.8]} 22. Na4 {[%clk
0:00:35.6]} 22... Qb5 {[%clk 0:00:38.6]} 23. Nac3 {[%clk 0:00:34.8]} 23... Qb6
{[%clk 0:00:34.1]} 24. Na4 {[%clk 0:00:35.6]} 24... Qb5 {[%clk 0:00:32.5]} 25.
Nac3 {[%clk 0:00:36.3]} 25... Qb6 {[%clk 0:00:28.5]} 26. Na4 {[%clk 0:00:36.7]}
1/2-1/2

[Event "*** Titled Tuesday Blitz"]
[Site "Chess.com"]
[Date "2018.09.04"]
[Round "1"]
[White "NemtsevIgor"]
[Black "snowlord"]
[Result "0-1"]
[WhiteElo "2387"]
[BlackElo "2725"]
[TimeControl "180+2"]
[EndTime "13:42:02 PDT"]
[Termination "snowlord won by checkmate"]

1. c3 {[%clk 0:03:01.7]} 1... e5 {[%clk 0:02:59.8]} 2. Qa4 {[%clk 0:03:01.8]}
2... Nf6 {[%clk 0:02:59.7]} 3. g4 {[%clk 0:03:01]} 3... h6 {[%clk 0:02:59.5]} 4.
h3 {[%clk 0:03:00.2]} 4... c6 {[%clk 0:02:59.8]} 5. d3 {[%clk 0:02:59.9]} 5...
d5 {[%clk 0:03:01.3]} 6. Bg2 {[%clk 0:03:00.4]} 6... Nbd7 {[%clk 0:03:03]} 7.
Nd2 {[%clk 0:03:00.2]} 7... g6 {[%clk 0:03:04.7]} 8. Nf1 {[%clk 0:03:00.1]} 8...
Bg7 {[%clk 0:03:06.4]} 9. Ng3 {[%clk 0:03:01]} 9... a5 {[%clk 0:03:08.1]} 10.
Nf3 {[%clk 0:03:00.8]} 10... b5 {[%clk 0:03:09.7]} 11. Qc2 {[%clk 0:03:01.3]}
11... Qe7 {[%clk 0:03:11.3]} 12. a4 {[%clk 0:02:55.6]} 12... h5 {[%clk 0:03:06]}
13. Bg5 {[%clk 0:02:46.8]} 13... hxg4 {[%clk 0:03:03.3]} 14. hxg4 {[%clk
0:02:47.1]} 14... Rxh1+ {[%clk 0:03:04.9]} 15. Bxh1 {[%clk 0:02:48.4]} 15... Bb7
{[%clk 0:03:06.6]} 16. axb5 {[%clk 0:02:48.8]} 16... cxb5 {[%clk 0:03:06.1]} 17.
e4 {[%clk 0:02:31.7]} 17... a4 {[%clk 0:03:01.8]} 18. Kf1 {[%clk 0:02:21.4]}
18... Qe6 {[%clk 0:02:47.9]} 19. exd5 {[%clk 0:02:02.5]} 19... Bxd5 {[%clk
0:02:31.4]} 20. Re1 {[%clk 0:02:01.4]} 20... Kf8 {[%clk 0:02:13]} 21. Bxf6
{[%clk 0:01:36.1]} 21... Bxf6 {[%clk 0:02:03.2]} 22. g5 {[%clk 0:01:37.2]} 22...
Bg7 {[%clk 0:01:59.4]} 23. Bg2 {[%clk 0:01:35.8]} 23... Qc6 {[%clk 0:01:48]} 24.
Ne4 {[%clk 0:01:32.3]} 24... Nc5 {[%clk 0:01:37.4]} 25. Nfd2 {[%clk 0:01:31.5]}
25... Ne6 {[%clk 0:01:36.7]} 26. Bh3 {[%clk 0:01:26.8]} 26... Nf4 {[%clk
0:01:35.7]} 27. Bg4 {[%clk 0:01:27.9]} 27... Rd8 {[%clk 0:01:36.6]} 28. c4
{[%clk 0:01:23.7]} 28... Nxd3 {[%clk 0:01:29.9]} 29. Re3 {[%clk 0:01:00.4]}
29... bxc4 {[%clk 0:01:29]} 30. Nf6 {[%clk 0:00:58.3]} 30... Bxf6 {[%clk
0:01:28.8]} 31. gxf6 {[%clk 0:00:59]} 31... Qxf6 {[%clk 0:01:28.4]} 32. Ne4
{[%clk 0:00:56.9]} 32... Qf4 {[%clk 0:01:23.2]} 33. Bf3 {[%clk 0:00:54.5]} 33...
f5 {[%clk 0:01:13.9]} 34. Nd2 {[%clk 0:00:45.9]} 34... e4 {[%clk 0:01:06.1]} 35.
Bg2 {[%clk 0:00:37.1]} 35... Qxf2# {[%clk 0:01:05.7]} 0-1

[Event "*** Titled Tuesday Blitz"]
[Site "Chess.com"]
[Date "2018.09.04"]
[Round "1"]
[White "ChessicallyInclined"]
[Black "GHANDEEVAM2003"]
[Result "0-1"]
[WhiteElo "2344"]
[BlackElo "2699"]
[TimeControl "180+2"]
[EndTime "13:42:02 PDT"]
[Termination "GHANDEEVAM2003 won by resignation"]

1. d4 {[%clk 0:02:57.9]} 1... Nf6 {[%clk 0:02:58.9]} 2. c4 {[%clk 0:02:58.8]}
2... g6 {[%clk 0:02:57.3]} 3. Nc3 {[%clk 0:02:59.6]} 3... Bg7 {[%clk 0:02:58.5]}
4. e4 {[%clk 0:03:00.4]} 4... d6 {[%clk 0:02:59.3]} 5. f3 {[%clk 0:03:01.8]}
5... O-O {[%clk 0:02:59.9]} 6. Be3 {[%clk 0:03:03.3]} 6... Nc6 {[%clk
0:02:59.8]} 7. Nge2 {[%clk 0:02:59.6]} 7... a6 {[%clk 0:03:00.5]} 8. Qd2 {[%clk
0:02:56.9]} 8... Rb8 {[%clk 0:02:56.2]} 9. Rc1 {[%clk 0:02:57.4]} 9... Bd7
{[%clk 0:02:55.5]} 10. Nd1 {[%clk 0:02:57.4]} 10... b5 {[%clk 0:02:54]} 11. c5
{[%clk 0:02:58.3]} 11... e5 {[%clk 0:02:35.6]} 12. d5 {[%clk 0:02:54.5]} 12...
Ne7 {[%clk 0:02:25.9]} 13. c6 {[%clk 0:02:50.7]} 13... Bc8 {[%clk 0:02:25.2]}
14. g4 {[%clk 0:02:44.9]} 14... Ne8 {[%clk 0:02:21.8]} 15. h4 {[%clk 0:02:29.5]}
15... f5 {[%clk 0:02:21.8]} 16. h5 {[%clk 0:02:21.5]} 16... fxe4 {[%clk
0:02:19.4]} 17. fxe4 {[%clk 0:02:20.2]} 17... Nf6 {[%clk 0:02:15.4]} 18. Nf2
{[%clk 0:02:18.7]} 18... Nxg4 {[%clk 0:02:08.5]} 19. Nxg4 {[%clk 0:02:18.9]}
19... Bxg4 {[%clk 0:02:10.4]} 20. hxg6 {[%clk 0:02:19.7]} 20... Nxg6 {[%clk
0:02:11.1]} 21. Rg1 {[%clk 0:02:15.8]} 21... Nh4 {[%clk 0:02:01.1]} 22. Rxg4
{[%clk 0:01:55.7]} 22... Nf3+ {[%clk 0:02:00.5]} 23. Kd1 {[%clk 0:01:57.2]}
23... Nxd2 {[%clk 0:02:00.9]} 24. Kxd2 {[%clk 0:01:59.1]} 24... Kh8 {[%clk
0:01:54.9]} 25. Bh3 {[%clk 0:01:54.3]} 25... Qf6 {[%clk 0:01:51.1]} 26. Ng3
{[%clk 0:01:44.9]} 26... Bh6 {[%clk 0:01:49.3]} 27. Nf5 {[%clk 0:01:41.7]} 27...
Bxe3+ {[%clk 0:01:49.2]} 28. Kxe3 {[%clk 0:01:43.6]} 28... Rg8 {[%clk
0:01:49.8]} 29. Rcg1 {[%clk 0:01:40.8]} 29... Rxg4 {[%clk 0:01:49.6]} 30. Rxg4
{[%clk 0:01:41.5]} 30... Rg8 {[%clk 0:01:50.6]} 31. Rxg8+ {[%clk 0:01:25.1]}
31... Kxg8 {[%clk 0:01:52.5]} 32. Kf2 {[%clk 0:01:14.2]} 32... Qg5 {[%clk
0:01:34.7]} 33. Nxd6 {[%clk 0:01:09.8]} 33... Qf4+ {[%clk 0:01:35.3]} 34. Kg2
{[%clk 0:01:08.9]} 34... cxd6 {[%clk 0:01:24.9]} 35. Be6+ {[%clk 0:00:46.8]}
35... Kg7 {[%clk 0:01:24.7]} 36. c7 {[%clk 0:00:47.5]} 36... Qxe4+ {[%clk
0:01:25.8]} 37. Kg3 {[%clk 0:00:36.7]} 37... Qd3+ {[%clk 0:01:26.7]} 0-1

[Event "*** Titled Tuesday Blitz"]
[Site "Chess.com"]
[Date "2018.09.04"]
[Round "1"]
[White "MFguimaraes"]
[Black "Korchmar_Vasiliy"]
[Result "0-1"]
[WhiteElo "2307"]
[BlackElo "2650"]
[TimeControl "180+2"]
[EndTime "13:42:02 PDT"]
[Termination "Korchmar_Vasiliy won by resignation"]

1. e4 {[%clk 0:02:55.4]} 1... c5 {[%clk 0:03:00.7]} 2. Nf3 {[%clk 0:02:53.2]}
2... e6 {[%clk 0:03:01.9]} 3. g3 {[%clk 0:02:52.2]} 3... Nc6 {[%clk 0:03:02]} 4.
Bg2 {[%clk 0:02:53.3]} 4... Nf6 {[%clk 0:03:02.9]} 5. Qe2 {[%clk 0:02:53.5]}
5... d6 {[%clk 0:03:03.4]} 6. O-O {[%clk 0:02:52.6]} 6... Be7 {[%clk 0:03:03.1]}
7. Re1 {[%clk 0:02:46.3]} 7... e5 {[%clk 0:03:03.6]} 8. Nc3 {[%clk 0:02:46.8]}
8... Bg4 {[%clk 0:03:02.4]} 9. d3 {[%clk 0:02:05.1]} 9... Nd4 {[%clk 0:03:00.3]}
10. Qd1 {[%clk 0:02:05.1]} 10... O-O {[%clk 0:02:44.8]} 11. a4 {[%clk
0:02:05.8]} 11... h6 {[%clk 0:02:43.8]} 12. Nb5 {[%clk 0:02:03.1]} 12... Qd7
{[%clk 0:02:34.8]} 13. Nbxd4 {[%clk 0:02:01.8]} 13... cxd4 {[%clk 0:02:36.7]}
14. c4 {[%clk 0:02:00]} 14... a5 {[%clk 0:02:20.2]} 15. Qb3 {[%clk 0:02:00.1]}
15... Qc8 {[%clk 0:02:13.3]} 16. Bd2 {[%clk 0:01:53.2]} 16... Nd7 {[%clk
0:02:13.5]} 17. Reb1 {[%clk 0:01:28.2]} 17... Nc5 {[%clk 0:02:13.5]} 18. Qc2
{[%clk 0:01:29.2]} 18... f5 {[%clk 0:02:10.6]} 19. exf5 {[%clk 0:01:25.3]} 19...
Qxf5 {[%clk 0:02:09.5]} 20. Nh4 {[%clk 0:01:14.5]} 20... Qxf2+ {[%clk
0:02:07.7]} 21. Kh1 {[%clk 0:01:15.7]} 21... Bxh4 {[%clk 0:01:58.6]} 22. Rf1
{[%clk 0:01:15]} 22... Qe2 {[%clk 0:01:59.2]} 23. gxh4 {[%clk 0:01:02]} 23...
Nxd3 {[%clk 0:01:50.4]} 24. c5 {[%clk 0:00:33.1]} 24... dxc5 {[%clk 0:01:26.8]}
25. Qc4+ {[%clk 0:00:30.3]} 25... Kh8 {[%clk 0:01:26.7]} 26. h3 {[%clk
0:00:12.7]} 26... Nf2+ {[%clk 0:01:25.1]} 27. Rxf2 {[%clk 0:00:11.5]} 27... Qxc4
{[%clk 0:01:26.1]} 28. Rxf8+ {[%clk 0:00:12.1]} 28... Rxf8 {[%clk 0:01:28]} 29.
hxg4 {[%clk 0:00:13.6]} 29... Qe2 {[%clk 0:01:25.9]} 30. Bxa5 {[%clk 0:00:12.3]}
30... Qxb2 {[%clk 0:01:21.6]} 31. Rg1 {[%clk 0:00:13.7]} 31... c4 {[%clk
0:01:20.5]} 32. Bc7 {[%clk 0:00:15.1]} 32... d3 {[%clk 0:01:19.9]} 33. Bxe5
{[%clk 0:00:14.5]} 33... Qxe5 {[%clk 0:01:19.7]} 0-1

[Event "*** Titled Tuesday Blitz"]
[Site "Chess.com"]
[Date "2018.09.04"]
[Round "1"]
[White "PowerThinking2650"]
[Black "gammagramma"]
[Result "0-1"]
[WhiteElo "2221"]
[BlackElo "2569"]
[TimeControl "180+2"]
[EndTime "13:42:06 PDT"]
[Termination "gammagramma won on time"]

1. e4 {[%clk 0:03:01.4]} 1... Nc6 {[%clk 0:02:56.1]} 2. d4 {[%clk 0:02:59.9]}
2... d5 {[%clk 0:02:54.3]} 3. exd5 {[%clk 0:02:58.4]} 3... Qxd5 {[%clk
0:02:54.6]} 4. Be3 {[%clk 0:02:59.1]} 4... Nf6 {[%clk 0:02:55.1]} 5. c4 {[%clk
0:02:59]} 5... Qa5+ {[%clk 0:02:56.1]} 6. Nc3 {[%clk 0:02:58.4]} 6... Bg4 {[%clk
0:02:57]} 7. f3 {[%clk 0:02:51]} 7... Bf5 {[%clk 0:02:57.5]} 8. a3 {[%clk
0:02:44.3]} 8... e5 {[%clk 0:02:36]} 9. d5 {[%clk 0:02:36]} 9... Nd4 {[%clk
0:02:33.4]} 10. Bxd4 {[%clk 0:02:32]} 10... exd4 {[%clk 0:02:34.4]} 11. Qxd4
{[%clk 0:02:32.3]} 11... Nd7 {[%clk 0:02:17.6]} 12. Qe3+ {[%clk 0:02:10.5]}
12... Be7 {[%clk 0:02:16.8]} 13. b4 {[%clk 0:02:10.7]} 13... Qb6 {[%clk
0:02:16.5]} 14. c5 {[%clk 0:02:07.7]} 14... Qf6 {[%clk 0:02:15.8]} 15. g4 {[%clk
0:01:44]} 15... Bg6 {[%clk 0:02:14.7]} 16. Bb5 {[%clk 0:01:25.2]} 16... O-O-O
{[%clk 0:02:08.2]} 17. Nge2 {[%clk 0:01:07.8]} 17... a6 {[%clk 0:01:56.6]} 18.
Bxd7+ {[%clk 0:00:50.2]} 18... Rxd7 {[%clk 0:01:55.5]} 19. c6 {[%clk 0:00:49.3]}
19... bxc6 {[%clk 0:01:53.9]} 20. Qa7 {[%clk 0:00:34.1]} 20... Rxd5 {[%clk
0:01:43]} 21. Nxd5 {[%clk 0:00:29]} 21... cxd5 {[%clk 0:01:32.3]} 22. Rc1 {[%clk
0:00:21.7]} 22... Bd6 {[%clk 0:01:30.5]} 23. Qa8+ {[%clk 0:00:11.7]} 23... Kd7
{[%clk 0:01:31.1]} 24. Qxh8 {[%clk 0:00:11.2]} 24... Bd3 {[%clk 0:01:30.4]} 25.
Kf2 {[%clk 0:00:02.3]} 25... Bxe2 {[%clk 0:01:14.5]} 26. Kxe2 {[%clk 0:00:02.2]}
26... Qb2+ {[%clk 0:01:16]} 0-1